Workbook

Sheet Names
A1: Handout

Sheet Data Validation
A1: Handout

Sheet LookupDetails
A1: Three basic LOOKUP functions and INDEX and CHOOSE and MATCH:
A2: VLOOKUP | B2: Most common because most lookup tables like tax tables and price tables are orientated vertically
A3: HLOOKUP | B3: Most tables are vertical, not horizontal, so using HLOOKUP is rare.
A4: LOOKUP | B4: Although LOOKUP was one of the first functions in a spreadsheet, the VLOOKUP can do almost everything that the LOOKUP does and more. The one thing that the LOOKUP can do that the VLOOKUP (or HLOOKUP) can't do is retrieve a value to the left or above a lookup_value column or row; it can also have a column and a row area. LOOKUP function must have the lookup_vector sorted in ascending order. LOOKUP looks up the greatest value that does not exceed a specified value anywhere in a table or range.
A5: INDEX | B5: Good when you have more than one table to look values up in. (non-contiguous ranges must be in parenthesis and stored all on the same worksheet). You can also have a table with intersection lookup values where INDEX and MATCH can be used together to look up labels and return intersection of two labels. Also can be used as a replacement for VLOOKUP when the data you want to retrieve is to the left of the lookup column.
A6: CHOOSE | B6: CHOOSE can return a value or a range from a list of 1 to 254 arguments.
A7: MATCH | B7: This function tells you the ordinal position of an item in a list
A9: VLOOKUP: Looks at a cell, then takes that value and goes over to a look up table where it looks in the first column, and when it finds the corresponding value in the first columns, it moves to the left in that row and retrieves a value from one of the tables columns and brings it back to the cell.
A10: Arguments | B10: Descriptions
A11: lookup_value | B11: The date you want to look up. This value can be a number, text, a logical value, or a name or cell reference that refers to a value.
A12: table_array | B12: The lookup table. The first column must have the values to look up such as part number, part name, tax bracket wage figures, grade number intervals. The other columns can have data that you want to retrieve such as part price, tax rates, tax paid from earlier brackets.
A13: col_index_num | B13: The number of the column containing the data you want to retrieve. The number 1 indicates that first column; 2 indicates the second column.
A14: range_lookup | B14: The type of lookup you want to perform: TRUE or FALSE. With TRUE (the default), the VLOOKUP function finds the greatest value that does not exceed the lookup_value value. When the lookup type is TRUE, the first column must be sorted in ascending order, otherwise the VLOOKUP might not retrieve the correct value. With FALSE, the VLOOKUP looks for an exact match of the lookup_value.
A16: steps | B16: VLOOKUP Algorithm
A17: 1 | B17: Looks for an exact match. If duplicate values it ignores the second value. If no match it goes to step 2
A18: 2 | B18: If the lookup_value is smaller than the first value in the first column, #N/A error is displayed. If the value is greater than the first value in the first column, it goes to step 3
A19: 3 | B19: The VLOOKUP function continues checking until it sees a value bigger than the lookup_value, then it uses the previous row and retrieves a value from that row.
A20: 4 | B20: It looks to see if the next value is the last value in the table, if it is it retrieves a value from this row, otherwise it repeats step 3

Sheet VLOOKUP
A1: =ROW()&")" -> 1) | B1: The V in VLOOKUP means Vertical.
A2: 2) | B2: VLOOKUP function returns something to a cell or formula that it found in a lookup table.
A3: 3) | B3: VLOOKUP(cell you want to lookup, Lookup Table, Column Designation of value you want to return to the cell, Exact Match = 0 or approximate value = 1 (default))
A4: 4) | B4: Approximate value means that when the function sees a value that is bigger than the lookup_value, it stops and uses that row above that value.
A5: =ROW()&")" -> 5) | B5: For approximate value, VLOOKUP takes the value you tell it to look at, goes to the first column of the lookup table (sorted ascending) and if the first value is less than the lookup_value it returns #N/A otherwise it races down the column until it sees a value bigger than the lookup_value and then it uses the row above, then it goes to the column that you specified and gets that value, then brings it back to the cell or formula.
A6: 6) | B6: Using named ranges for lookup table is usually efficient. Using Data Validation for the lookup cell helps the accuracy of your task.
A7: 7) | B7: When creating the lookup_table in the formula itself: 1) enclose the table in curly brackets { }; 2) column elements are separated by commas ,; 3) row elements are separated by semicolons ;.
A9: 1 | B9: Example 1: Deliver value to cell. Find approximate value from column 2 of lookup table.
B10: 0 | C10: F
B11: 0.65 | C11: D
B12: 0.75 | C12: C
B13: 0.85 | C13: B
B14: 0.95 | C14: A
B16: Score | C16: Grade
B17: 0.749
A19: 2 | B19: Example 2: Deliver value to cell. Find exact value from column 2 of lookup table.
B20: Product 1 | C20: 20
B21: Product 2 | C21: 25
B22: Product 3 | C22: 15
B23: Product 4 | C23: 15
B24: Product 5 | C24: 16
B26: Product | C26: Price
B27: =B21 -> Product 2
A29: 3 | B29: Example 3: Deliver value to cell. Find value from column 2 & 3. Use COLUMN function (tells you what column you are in).
B30: Product | C30: Price | D30: Description
B31: Boom01 | C31: 15 | D31: Flying Range is 10
B32: Boom02 | C32: 30 | D32: Flying Range is 20
B33: Boom03 | C33: 40 | D33: Flying Range is 50
B34: Boom04 | C34: 45 | D34: Flying Range is 60
B35: Boom05 | C35: 65 | D35: Flying Range is 70
B36: Boom06 | C36: 69 | D36: Flying Range is 80
B37: Boom07 | C37: 100 | D37: Flying Range is 85
B38: Boom08 | C38: 110 | D38: Flying Range is 110
B39: Boom09 | C39: 165 | D39: Flying Range is 160
B41: Product | C41: Price | D41: =D30 -> Description
B42: =B37 -> Boom07
A44: 4 | B44: Example 4: Use VLOOKUP to deliver a value to a formula.
B45: Days Late | C45: % Late Fee
B46: 0 | C46: 0.01
B47: 30 | C47: 0.02
B48: 60 | C48: 0.03
B49: 90 | C49: 0.05
B51: =B45 -> Days Late | C51: Balance | D51: Late Charge
B52: 89 | C52: 500
A54: 5 | B54: Example 5: Use multiple VLOOKUPs in 1 formula to deliver mutiple values to a formula. Also, Use IF function or IFERROR function to solve #N/A error problem
B55: Manufacturers Plus
B56: Income Statement
B57: Projected Net Income For The Years Ended December 31
C59: 2003 | D59: =C59+1 -> 2004 | E59: =D59+1 -> 2005 | F59: =E59+1 -> 2006 | G59: =F59+1 -> 2007 | H59: =G59+1 -> 2008
B60: Net Revenues | C60: 450000 | D60: =C60*(1+$J80) -> 495000 | E60: 544500 | F60: 598950 | G60: 658845 | H60: 724729.5
B61: Expenses | C61: 500000 | D61: 510000 | E61: 520200 | F61: 530604 | G61: 541216.08 | H61: 552040.4016
B62: Net Income Before Income Taxes | C62: =C60-C61 -> -50000 | D62: -15000 | E62: 24300 | F62: 68346 | G62: 117628.92 | H62: 172689.0984
B63: Tax Expense
B64: Net Income | C64: =C62-C63 -> -50000 | D64: -15000 | E64: 24300 | F64: 68346 | G64: 117628.92 | H64: 172689.0984
I66: Tax Tables 2004
J67: If Taxable Income Is:
I68: VLOOKUP Reference | J68: Over - | K68: But Not Over | L68: Tax Amount From Previous Bracket | M68: Tax Rate For Remaining Amount
I70: 0 | J70: 0 | K70: 50000 | M70: 0.15
I71: =J71+1 -> 50001 | J71: =K70 -> 50000 | K71: 75000 | L71: =M70*K70 -> 7500 | M71: 0.25
I72: 75001 | J72: 75000 | K72: 100000 | L72: =L71+(K71-K70)*M71 -> 13750 | M72: 0.34
I73: 100001 | J73: 100000 | K73: 335000 | L73: 22250 | M73: 0.39
I74: 335001 | J74: 335000 | K74: 10000000 | L74: 113900 | M74: 0.34
I75: 10000001 | J75: 10000000 | K75: 15000000 | L75: 3400000 | M75: 0.35
I76: 15000001 | J76: 15000000 | K76: 18333333 | L76: 5150000 | M76: 0.38
I77: 18333334 | J77: 18333333 | L77: 6416666.54 | M77: 0.35
I79: Assumptions
I80: Increase In Sales | J80: 0.1
I81: Increase in Expenses | J81: 0.02
A84: 6 | B84: Example 6: Create lookup_table in formula itself "hard code table into formula": 1) enclose the table in curly brackets { }; 2) column elements are separated by commas ,; 3) row elements are separated by semicolons ;. Use RANDBETWEEN to generate random integers (in 2003 you have to go to Tools menu, Add-ins, then check Analysis ToolPak".)
B85: 1 | C85: Suix
B86: 2 | C86: Fred
B87: 3 | C87: Chin
B88: 4 | C88: Sheliadawn
B90: Find Name Randomly
B92: Find Name Randomly

Sheet HLOOKUP
A1: =ROW()&")" -> 1) | B1: HLOOKUP is the same as VLOOKUP except the H means Horizontal
A2: =ROW()&")" -> 2) | B2: Most tables are vertical, not horizontal, so using HLOOKUP is rare.
B4: Product 1 | C4: Product 2 | D4: Product 3 | E4: Product 4 | F4: Product 5 | H4: Product | I4: =C4 -> Product 2
B5: 20 | C5: 25 | D5: 15 | E5: 15 | F5: 16 | H5: Price

Sheet LOOKUP
A1: =ROW()&")" -> 1) | B1: Although LOOKUP was one of the first functions in a spreadsheet, the VLOOKUP can do almost everything that the LOOKUP does and more. The one thing that the LOOKUP can do that the VLOOKUP (or HLOOKUP) can't do is retrieve a value to the left or above a lookup_value column or row; it can also have a column and a row area. LOOKUP function must have the lookup_vector sorted in ascending order. LOOKUP looks up the greatest value that does not exceed a specified value anywhere in a table or range.
A2: =ROW()&")" -> 2)
B4: Product | C4: Price | D4: Description
B5: Boom01 | C5: 15 | D5: Flying Range is 10
B6: Boom08 | C6: 110 | D6: Flying Range is 110
B7: Boom09 | C7: 165 | D7: Flying Range is 160
B8: Boom02 | C8: 30 | D8: Flying Range is 20
B9: Boom03 | C9: 40 | D9: Flying Range is 50
B10: Boom04 | C10: 45 | D10: Flying Range is 60
B11: Boom05 | C11: 65 | D11: Flying Range is 70
B12: Boom06 | C12: 69 | D12: Flying Range is 80
B13: Boom07 | C13: 100 | D13: Flying Range is 85
D15: Description | F15: Product
D16: Flying Range is 60

Sheet MATCH
A1: =ROW()&")" -> 1) | B1: The MATCH function looks up a value and tells you what relative position it is in the list.
A2: =ROW()&")" -> 2) | B2: If match_type is 1, MATCH finds the largest value that is less than or equal to lookup_value. Lookup_array must be placed in ascending order: ...-2, -1, 0, 1, 2, ..., A-Z, FALSE, TRUE.
A3: 3) | B3: If match_type is 0, MATCH finds the first value that is exactly equal to lookup_value. Lookup_array can be in any order.
A4: 4) | B4: If match_type is -1, MATCH finds the smallest value that is greater than or equal to lookup_value. Lookup_array must be placed in descending order: TRUE, FALSE, Z-A, ...2, 1, 0, -1, -2, ..., and so on.
A5: 5) | B5: If match_type is omitted, it is assumed to be 1.
C7: Allowances
A8: Income | C8: 0 | D8: 1 | E8: 2 | F8: 3 | G8: 4 | H8: 5
B9: 0 | C9: =ROW()-COLUMN() -> 6 | D9: 5 | E9: 4 | F9: 3 | G9: 2 | H9: 1
B10: 100 | C10: 7 | D10: 6 | E10: 5 | F10: 4 | G10: 3 | H10: 2
B11: 200 | C11: 8 | D11: 7 | E11: 6 | F11: 5 | G11: 4 | H11: 3
B12: 300 | C12: 9 | D12: 8 | E12: 7 | F12: 6 | G12: 5 | H12: 4
B13: 400 | C13: 10 | D13: 9 | E13: 8 | F13: 7 | G13: 6 | H13: 5
B14: 500 | C14: 11 | D14: 10 | E14: 9 | F14: 8 | G14: 7 | H14: 6
B15: 600 | C15: 12 | D15: 11 | E15: 10 | F15: 9 | G15: 8 | H15: 7
B16: 700 | C16: 13 | D16: 12 | E16: 11 | F16: 10 | G16: 9 | H16: 8
D18: Relative Position in list
B19: Income | C19: 250
B20: Allowances | C20: 2

Sheet INDEX
A1: =ROW()&")" -> 1) | B1: INDEX has 2 different uses: 1) look up a value that is at the intersection of a row and column, or 2) look up a specific table and then within that specific table look up a value that is at the intersection of a row and column.
A2: =ROW()&")" -> 2) | B2: Good when you have more than one table to look values up in. (non-contiguous ranges must be in parenthesis and stored all on the same worksheet). You can also have a table with intersection lookup values where INDEX and MATCH can be used together to look up labels and return intersection of two labels. Also can be used as a replacement for VLOOKUP when the data you want to retrieve is to the left of the lookup column.
A3: 3) | B3: Example 1: Look up a value that is at the intersection of a row and column.
A4: 4) | B4: Example 2: Look up a specific table and then within that specific table look up a value that is at the intersection of a row and column.
A6: 1 | C6: Allowances
A7: Income | C7: 0 | D7: 1 | E7: 2 | F7: 3 | G7: 4 | H7: 5
B8: 0 | C8: 6 | D8: 5 | E8: 4 | F8: 3 | G8: 2 | H8: 1
B9: 100 | C9: 7 | D9: 6 | E9: 5 | F9: 4 | G9: 3 | H9: 2
B10: 200 | C10: 8 | D10: 7 | E10: 6 | F10: 5 | G10: 4 | H10: 3
B11: 300 | C11: 9 | D11: 8 | E11: 7 | F11: 6 | G11: 5 | H11: 4
B12: 400 | C12: 10 | D12: 9 | E12: 8 | F12: 7 | G12: 6 | H12: 5
B13: 500 | C13: 11 | D13: 10 | E13: 9 | F13: 8 | G13: 7 | H13: 6
B14: 600 | C14: 12 | D14: 11 | E14: 10 | F14: 9 | G14: 8 | H14: 7
B15: 700 | C15: 13 | D15: 12 | E15: 11 | F15: 10 | G15: 9 | H15: 8
D17: Relative Position in list | F17: Tax
B18: Income | C18: 250 | D18: =MATCH(C18,B8:B15,1) -> 3
B19: Allowances | C19: 2 | D19: =MATCH(C19,C7:H7,0) -> 3
A21: 2 | B21: Customer Type 10 | H21: Region | J21: Shipping Method | L21: Customer Type
C22: Shipping Method - Standard | H22: NW | J22: Rail | L22: Customer Type 10
B23: Region | C23: Rail | D23: Truck | E23: Plane | F23: Ship | H23: West | J23: Truck | L23: Customer Type 20
B24: NW | C24: 0.125 | D24: 0.135 | E24: 1.525 | F24: 0.225 | H24: SW | J24: Plane | L24: Customer Type 30
B25: West | C25: 0.205 | D25: 0.145 | E25: 2.025 | F25: 0.245 | H25: MidWest | J25: Ship
B26: SW | C26: 0.265 | D26: 0.165 | E26: 2.125 | F26: 0.225 | H26: East
B27: MidWest | C27: 0.305 | D27: 0.185 | E27: 2.275 | F27: 0.225
B28: East | C28: 0.475 | D28: 0.425 | E28: 3.525 | F28: 0.375 | J28: Region
J29: West
B30: Customer Type 20 | J30: Shipping Method
C31: Shipping Method - Preferred | J31: Truck
B32: Region | C32: Rail | D32: Truck | E32: Plane | F32: Ship | J32: Customer Type
B33: NW | C33: 0.115 | D33: 0.125 | E33: 1.375 | F33: 0.205 | J33: Customer Type 20
B34: West | C34: 0.185 | D34: 0.135 | E34: 1.825 | F34: 0.215 | J34: Shipping per Unit
B35: SW | C35: 0.245 | D35: 0.155 | E35: 1.915 | F35: 0.205
B36: MidWest | C36: 0.275 | D36: 0.165 | E36: 2.055 | F36: 0.205
B37: East | C37: 0.435 | D37: 0.385 | E37: 3.175 | F37: 0.345
B39: Customer Type 30
C40: Shipping Method - Most Preferred
B41: Region | C41: Rail | D41: Truck | E41: Plane | F41: Ship
B42: NW | C42: 0.105 | D42: 0.115 | E42: 1.245 | F42: 0.175
B43: West | C43: 0.175 | D43: 0.125 | E43: 1.645 | F43: 0.165
B44: SW | C44: 0.215 | D44: 0.135 | E44: 1.725 | F44: 0.185
B45: MidWest | C45: 0.255 | D45: 0.155 | E45: 1.845 | F45: 0.185
B46: East | C46: 0.385 | D46: 0.345 | E46: 2.865 | F46: 0.305

Sheet MATCH & INDEX
A1: =ROW()&")" -> 1) | B1: INDEX has 2 different uses: 1) look up a value that is at the intersection of a row and column, or 2) look up a specific table and then within that specific table look up a value that is at the intersection of a row and column.
A2: =ROW()&")" -> 2) | B2: The MATCH function looks up a value and tells you what relative position it is in the list.
A3: =ROW()&")" -> 3) | B3: Good when you have more than one table to look values up in. (non-contiguous ranges must be in parenthesis and stored all on the same worksheet). You can also have a table with intersection lookup values where INDEX and MATCH can be used together to look up labels and return intersection of two labels. Also can be used as a replacement for VLOOKUP when the data you want to retrieve is to the left of the lookup column.
A5: 1 | B5: Example 1: INDEX and MATCH can be used together to look up labels and return intersection of two labels
C6: Allowances
A7: Income | C7: 0 | D7: 1 | E7: 2 | F7: 3 | G7: 4 | H7: 5
B8: 0 | C8: 6 | D8: 5 | E8: 4 | F8: 3 | G8: 2 | H8: 1
B9: 100 | C9: 7 | D9: 6 | E9: 5 | F9: 4 | G9: 3 | H9: 2
B10: 200 | C10: 8 | D10: 7 | E10: 6 | F10: 5 | G10: 4 | H10: 3
B11: 300 | C11: 9 | D11: 8 | E11: 7 | F11: 6 | G11: 5 | H11: 4
B12: 400 | C12: 10 | D12: 9 | E12: 8 | F12: 7 | G12: 6 | H12: 5
B13: 500 | C13: 11 | D13: 10 | E13: 9 | F13: 8 | G13: 7 | H13: 6
B14: 600 | C14: 12 | D14: 11 | E14: 10 | F14: 9 | G14: 8 | H14: 7
B15: 700 | C15: 13 | D15: 12 | E15: 11 | F15: 10 | G15: 9 | H15: 8
E17: Tax
B18: Income | C18: 250
B19: Allowances | C19: 2
A21: 2 | B21: Example 2: Use INDEX as a substitute for VLOOKUP when the value you want to return is to the left of the lookup column.
B22: Product | C22: Price | D22: Description
B23: Boom01 | C23: 15 | D23: Flying Range is 10
B24: Boom02 | C24: 30 | D24: Flying Range is 20
B25: Boom03 | C25: 40 | D25: Flying Range is 50
B26: Boom04 | C26: 45 | D26: Flying Range is 60
B27: Boom05 | C27: 65 | D27: Flying Range is 70
B28: Boom06 | C28: 69 | D28: Flying Range is 80
B29: Boom07 | C29: 100 | D29: Flying Range is 85
B30: Boom08 | C30: 110 | D30: Flying Range is 110
B31: Boom09 | C31: 165 | D31: Flying Range is 160
D33: Description | F33: Product
D34: Flying Range is 60
A36: 3 | B36: Example 3: Use INDEX and MATCH for looking up a specific table and then within that specific table looking up a value that is at the intersection of a row and column.
B37: Customer Type 10 | H37: Region | J37: Shipping Method | L37: Customer Type
C38: Shipping Method - Standard | H38: NW | J38: Rail | L38: Customer Type 10
B39: Region | C39: Rail | D39: Truck | E39: Plane | F39: Ship | H39: West | J39: Truck | L39: Customer Type 20
B40: NW | C40: 0.125 | D40: 0.135 | E40: 1.525 | F40: 0.225 | H40: SW | J40: Plane | L40: Customer Type 30
B41: West | C41: 0.205 | D41: 0.145 | E41: 2.025 | F41: 0.245 | H41: MidWest | J41: Ship
B42: SW | C42: 0.265 | D42: 0.165 | E42: 2.125 | F42: 0.225 | H42: East
B43: MidWest | C43: 0.305 | D43: 0.185 | E43: 2.275 | F43: 0.225
B44: East | C44: 0.475 | D44: 0.425 | E44: 3.525 | F44: 0.375 | J44: Region
J45: West
B46: Customer Type 20 | J46: Shipping Method
C47: Shipping Method - Preferred | J47: Truck
B48: Region | C48: Rail | D48: Truck | E48: Plane | F48: Ship | J48: Customer Type
B49: NW | C49: 0.115 | D49: 0.125 | E49: 1.375 | F49: 0.205 | J49: Customer Type 20
B50: West | C50: 0.185 | D50: 0.135 | E50: 1.825 | F50: 0.215 | J50: Shipping per Unit
B51: SW | C51: 0.245 | D51: 0.155 | E51: 1.915 | F51: 0.205
B52: MidWest | C52: 0.275 | D52: 0.165 | E52: 2.055 | F52: 0.205
B53: East | C53: 0.435 | D53: 0.385 | E53: 3.175 | F53: 0.345
B55: Customer Type 30
C56: Shipping Method - Most Preferred
B57: Region | C57: Rail | D57: Truck | E57: Plane | F57: Ship
B58: NW | C58: 0.105 | D58: 0.115 | E58: 1.245 | F58: 0.175
B59: West | C59: 0.175 | D59: 0.125 | E59: 1.645 | F59: 0.165
B60: SW | C60: 0.215 | D60: 0.135 | E60: 1.725 | F60: 0.185
B61: MidWest | C61: 0.255 | D61: 0.155 | E61: 1.845 | F61: 0.185
B62: East | C62: 0.385 | D62: 0.345 | E62: 2.865 | F62: 0.305

Sheet CHOOSE
A1: =ROW()&")" -> 1) | B1: CHOOSE can return a value or a range from a list of 1 to 254 arguments.
A2: =ROW()&")" -> 2)
B4: Select Garbage Duty for Week | C4: =CHOOSE(RANDBETWEEN(1,4),"Suix","Joel","Chin","Fred") -> Suix
B5: Select Garbage Duty for Week | C5: =VLOOKUP(RANDBETWEEN(1,4),{1,"Suix";2,"Joel";3,"Chin";4,"Fred"},2) -> Suix

Sheet Intersector Operator
A1: =ROW()&")" -> 1) | B1: Ctrl + Shift + F3 "Create Names From Selection"
A2: =ROW()&")" -> 2) | B2: A space is the intersector operator
A3: 3)
A4: 4)
A5: 5)
C7: Dept01 | D7: Dept02 | E7: Dept03 | F7: Dept04 | G7: Dept05
B8: Jan | C8: =1000*(ROW()-COLUMN())-RANDBETWEEN(0,500) -> 4962 | D8: 3699 | E8: 2551 | F8: 1524 | G8: 616
B9: Feb | C9: 5617 | D9: 4793 | E9: 3901 | F9: 2548 | G9: 1803
B10: Mar | C10: 6877 | D10: 5761 | E10: 4832 | F10: 3618 | G10: 2774
B11: Apr | C11: 7873 | D11: 6964 | E11: 5856 | F11: 4640 | G11: 3843
B12: May | C12: 8576 | D12: 7502 | E12: 6735 | F12: 5690 | G12: 4997
B13: Jun | C13: 9928 | D13: 8730 | E13: 7751 | F13: 6576 | G13: 5501
B14: Jul | C14: 10794 | D14: 9572 | E14: 8566 | F14: 7976 | G14: 6636
B15: Aug | C15: 11603 | D15: 10671 | E15: 9577 | F15: 8533 | G15: 7630
B16: Sep | C16: 12560 | D16: 11953 | E16: 10585 | F16: 9643 | G16: 8641
B17: Oct | C17: 13746 | D17: 12933 | E17: 11869 | F17: 10551 | G17: 9876
B18: Nov | C18: 14683 | D18: 13760 | E18: 12527 | F18: 11923 | G18: 10924
B19: Dec | C19: 15998 | D19: 14767 | E19: 13813 | F19: 12759 | G19: 11948
D21: Type Intersection in:
B22: =B11 -> Apr
B23: =F7 -> Dept04
